Cogmind - Beta 12 @@@ ROGUE MODE // 2024.01.15 @ 17:07:37 Player: sasha Result: Destroyed by G-34 Mercenary with Small Laser Performance ------------- Evolutions (1) 500 Regions Visited (3) 600 Robots Destroyed (19) 95 Value Destroyed (458) 458 Prototype IDs (0) 0 Alien Tech Used (0) 0 Bonus (0) 0 TOTAL SCORE: 1653 Bonus ------- None Cogmind --------- Core Integrity 0/400 Matter 300/300 Energy 100/100 System Corruption 0% Temperature Cool (6) Movement Core (50) Location -9/Storage Parts ------- > --- POWER (1) -------- (None) > --- PROPULSION (3) --- (None) > --- UTILITY (3) ------ (None) > --- WEAPON (2) ------- (None) > --- INVENTORY (5) ---- Small Storage Unit Improved Power Shielding Light Armor Plating Assault Rifle Heavy Mace Peak State ------------ > --- POWER ------------ Light Ion Engine > --- PROPULSION ------- Hover Unit Hover Unit Hover Unit > --- UTILITY ---------- Improved Heat Sink Small Storage Unit Propulsion Shielding > --- WEAPON ----------- Small Laser Heavy Mace > --- INVENTORY -------- Large Storage Unit Huge Storage Unit Improved Power Shielding Light Armor Plating Assault Rifle Heavy Mace [Rating: 14] Favorites ----------- Power Light Ion Engine Engine Light Ion Engine Propulsion Hover Unit Hover Unit Hover Unit Utility Improved Heat Sink Device Improved Heat Sink Storage Small Storage Unit Protection Propulsion Shielding Weapon Small Laser Energy Gun Small Laser Ballistic Gun Light Assault Rifle Impact Weapon Heavy Mace Build | -11 -10 -9 -9 ------- Run | Jun Mat Mat Sto Slots Evolved 2 | . . 2 . Power . | . . . . Propulsion 1 | . . 1 . Utility 1 | . . 1 . Weapon . | . . . . Parts Attached 18 | 2 11 5 . Power 1 | . 1 . . Engine 1 | . 1 . . Core . | . . . . Reactor . | . . . . Propulsion 5 | . 4 1 . Treads . | . . . . Leg . | . . . . Wheel . | . . . . Hover 5 | . 4 1 . Flight . | . . . . Utility 5 | . 2 3 . Device 1 | . 1 . . Storage 3 | . 1 2 . Processor . | . . . . Hackware . | . . . . Protection 1 | . . 1 . Artifact . | . . . . Weapon 7 | 2 4 1 . Energy Gun 4 | 1 3 . . Energy Cannon . | . . . . Ballistic Gun 2 | 1 1 . . Ballistic Cannon . | . . . . Launcher . | . . . . Special Weapon . | . . . . Impact Weapon 1 | . . 1 . Slashing Weapon . | . . . . Piercing Weapon . | . . . . Special Melee Weapon . | . . . . Unidentified Prototypes . | . . . . Parts Lost 5 | . . 4 1 Power 1 | . . 1 . Propulsion 3 | . . 3 . Utility . | . . . . Weapon 1 | . . . 1 Highest Loss Streak 4 | . . 4 1 To Critical Strikes . | . . . . Average Slot Usage (%) 63 | . 72 74 9 Engine 6 | . 6 7 . Hover 20 | . 26 22 . Device 7 | . 8 9 . Storage 7 | . 8 9 . Protection 3 | . . 8 . Energy Gun 11 | . 16 9 . Ballistic Gun 2 | . 5 . . Impact Weapon 4 | . . 7 9 Naked Turns 4 | . 2 . 2 Heaviest Build 14 | 2 12 14 3 Greatest Support 18 | 3 12 18 3 Greatest Overweight (x) 3 | . . 3 . Average Overweight (x) . | . . . . Largest Inventory Capacity 8 | 5 8 8 5 Average Capacity 6 | 5 6 7 5 Most Carried 7 | 3 6 7 5 Average Carried 4 | 1 2 5 5 Final Capacity 8 | 5 8 5 5 Final Carried 6 | 1 6 5 5 Class Distribution -------------------- 100% | Mutant Dominant Class ---------------- Mutant | -10/Materials Mutant | -9/Materials Mutant | -9/Storage Resources | -11 -10 -9 -9 ----------- Run | Jun Mat Mat Sto Matter Collected 402 | 191 141 50 20 Remotely . | . . . . Salvage Created 662 | . 234 287 141 Parts 30 | . 15 7 8 Haulers Intercepted 1 | . . . 1 Recyclers Shooed 1 | . . . 1 Parts Field Recycled . | . . . . Retrieved Matter . | . . . . Parts Self-Destructed . | . . . . Prevented . | . . . . Kills | -11 -10 -9 -9 ------- Run | Jun Mat Mat Sto Combat Hostiles Destroyed 13 | . 7 5 1 Melee 5 | . . 4 1 Guns 5 | . 5 . . AOE 2 | . 2 . . Classes Destroyed 8 | . 3 2 3 Worker 2 | . . . 2 Hauler 1 | . . . 1 Recycler 1 | . . 1 . Operator 1 | . . . 1 Watcher 1 | . 1 . . Swarmer 3 | . 3 . . Grunt 7 | . 4 3 . Sentry 3 | . . 2 1 Best Kill Streak 3 | . 3 3 3 Combat Bots Only 3 | . 3 3 1 Max Kills in Single Turn 1 | . 1 1 1 Gunslinging . | . . . . Exploded 1 | . 1 . . Melee 1 | . . 1 1 Uniques/NPCs Destroyed . | . . . . Combat | -11 -10 -9 -9 -------- Run | Jun Mat Mat Sto Damage Taken 1018 | . 217 417 384 Core 485 | . 83 125 277 Absorbed by Shields . | . . . . Redirected to Shielding 31 | . . 31 . Core Remaining (%) 83 | 100 66 . . Volleys Fired 26 | . 26 . . Largest 2 | . 2 . . Hottest 80 | . 80 . . Shots Fired 38 | . 38 . . Gun 38 | . 38 . . Cannon . | . . . . Launcher . | . . . . Special . | . . . . Kinetic 14 | . 14 . . Thermal 12 | . 12 . . Explosive . | . . . . Electromagnetic 12 | . 12 . . Robot Hit Streak 9 | . 9 . . Robot Miss Streak 4 | . 4 . . Penetration Max . | . . . . Secondary Targets 1 | . 1 . . Max Gunslinging Chain 1 | . 1 . . Shots Hit Robots 54 | . 25 18 11 Core Hits 18 | . 13 3 2 Critical Kills 2 | . 1 . 1 Critical Parts Destroyed 3 | . . 3 . Critical Strikes 5 | . 1 3 1 Destroy 1 | . 1 . . Smash 4 | . . 3 1 Melee Attacks 31 | . . 19 12 Impact 31 | . . 19 12 Slashing . | . . . . Piercing . | . . . . Sneak Attacks 5 | . . 1 4 Combat Hostiles . | . . . . Follow-up Attacks . | . . . . Damage Inflicted 1746 | . 516 667 563 Guns 256 | . 256 . . Cannons . | . . . . Explosions 260 | . 260 . . Melee 1230 | . . 667 563 Ramming . | . . . . Kinetic 101 | . 101 . . Thermal 326 | . 326 . . Explosive . | . . . . Electromagnetic 89 | . 89 . . Impact 1230 | . . 667 563 Slashing . | . . . . Piercing . | . . . . Highest Corruption 1 | . 1 . . Average Corruption 1 | . 1 . . Corruption Purged . | . . . . Corruption Blocked . | . . . . Effects 3 | . 3 . . Message Errors 1 | . 1 . . Matter Fused 1 | . 1 . . Energy Discharges 1 | . 1 . . Overload Shots . | . . . . Overflow Damage 261 | . . 102 159 Projectiles . | . . . . Explosions . | . . . . Melee 261 | . . 102 159 Knockbacks 4 | . . 1 3 Impact 4 | . . 1 3 Kinetic . | . . . . Secondary . | . . . . Self-Inflicted Damage 26 | . 26 . . Shots 1 | . 1 . . Rammed . | . . . . Targets Rammed . | . . . . Kicked . | . . . . Crushed . | . . . . Highest Temperature 6 | . 6 . . Average Temperature 4 | . 4 . . Received Heat Transfer 312 | . 63 114 135 Siege Activations . | . . . . Robots Corrupted . | . . . . Combat Hostiles . | . . . . Parts Fried 7 | . . 2 5 Impact Corruptions 12 | . . 5 7 Robots Melted . | . . . . Combat Hostiles . | . . . . Parts Melted . | . . . . Heat Transferred 500 | . 500 . . Parts Sabotaged . | . . . . Parts Stolen . | . . . . Parts Stripped . | . . . . Power Chain Reactions 2 | . 2 . . Missiles Intercepted . | . . . . Alert | -11 -10 -9 -9 ------- Run | Jun Mat Mat Sto Peak Influence 267 | . 252 267 239 Initial 112 | . . 105 112 Average 157 | . 145 185 168 Maximum Alert Level 1 | . 1 1 1 Low Security (%) 57 | 100 58 49 59 Level 1 42 | . 41 50 40 Level 2 . | . . . . Level 3 . | . . . . Level 4 . | . . . . Level 5 . | . . . . High Security . | . . . . Max Security . | . . . . Squads Dispatched 4 | . 3 1 . Investigation 2 | . 1 1 . Extermination . | . . . . Reinforcement 2 | . 2 . . Assault . | . . . . Garrison . | . . . . Intercept . | . . . . Searches Triggered . | . . . . Construction Impeded . | . . . . Haulers Reinforced . | . . . . Active Scanning Responses . | . . . . Cargo Convoy Interrupts . | . . . . Stealth | -11 -10 -9 -9 --------- Run | Jun Mat Mat Sto Distress Signals 3 | . 2 . 1 Communications Jammed . | . . . . Distress Signals . | . . . . Times Spotted 34 | . 14 7 13 Peak Tracking Total 12 | . 5 4 12 Tactical Retreats . | . . . . Traps | -11 -10 -9 -9 ------- Run | Jun Mat Mat Sto Traps Triggered 4 | . 4 . . Indirectly . | . . . . Trap Hack Attempts . | . . . . Triggered . | . . . . Disarmed . | . . . . Reprogrammed . | . . . . Reused . | . . . . Traps Extracted . | . . . . Installed . | . . . . Triggered . | . . . . Machines | -11 -10 -9 -9 ---------- Run | Jun Mat Mat Sto Machines Disabled . | . . . . Max in Single Turn . | . . . . Machines Repaired . | . . . . Machines Sabotaged . | . . . . Overloaded Fab Kills . | . . . . Hacking | -11 -10 -9 -9 --------- Run | Jun Mat Mat Sto Machines Accessed 3 | . 1 2 . Terminals 3 | . 1 2 . Fabricators . | . . . . Repair Stations . | . . . . Recycling Units . | . . . . Scanalyzers . | . . . . Garrison Access . | . . . . Total Hacks 4 | . 1 3 . Successful 1 | . . 1 . Failed 3 | . 1 2 . Catastrophic 2 | . 1 1 . Database Lockouts . | . . . . Manual 2 | . 1 1 . Terminals 4 | . 1 3 . Fabricators . | . . . . Repair Stations . | . . . . Recycling Units . | . . . . Scanalyzers . | . . . . Garrison Access . | . . . . Terminal Hacks 1 | . . 1 . Part Schematic 1 | . . 1 . Fabricator Hacks . | . . . . Repair Station Hacks . | . . . . Recycling Unit Hacks . | . . . . Scanalyzer . | . . . . Garrison Access Hacks . | . . . . Unauthorized Hacks . | . . . . Terminals . | . . . . Fabricators . | . . . . Repair Stations . | . . . . Recycling Units . | . . . . Scanalyzers . | . . . . Garrison Access . | . . . . Data Cores Recovered 1 | . . . 1 Used . | . . . . Hacking Detections 3 | . 1 2 . Full Trace Events 1 | . . 1 . Feedback Events . | . . . . Feedback Blocked . | . . . . Robot Schematics Acquired . | . . . . Robots Built . | . . . . Authchips . | . . . . Time . | . . . . Total Robot Build Rating . | . . . . Part Schematics Acquired 1 | . . 1 . Parts Built . | . . . . Authchips . | . . . . Time . | . . . . Total Part Build Rating . | . . . . Parts Repaired . | . . . . Time . | . . . . Parts Recycled . | . . . . Recycled Matter . | . . . . Retrieved Matter . | . . . . Retrieved Components . | . . . . Parts Scanalyzed . | . . . . Part Schematics Acquired . | . . . . Parts Damaged . | . . . . Bothacking | -11 -10 -9 -9 ------------ Run | Jun Mat Mat Sto Used RIF Installer . | . . . . Robots Hacked . | . . . . Non-combat . | . . . . Combat . | . . . . Robot Hacks Applied . | . . . . Relay Couplers Released . | . . . . Fabnet Peak Effective % . | . . . . Robots Rewired . | . . . . Allies Hacked . | . . . . Hacks Repelled . | . . . . Allies | -11 -10 -9 -9 -------- Run | Jun Mat Mat Sto Total Allies . | . . . . Largest Group . | . . . . Highest-Rated Group . | . . . . Highest-Rated Ally . | . . . . Total Orders . | . . . . Ally Attacks . | . . . . Total Damage . | . . . . Kills . | . . . . Allies Corrupted . | . . . . Allies Melted . | . . . . Intel | -11 -10 -9 -9 ------- Run | Jun Mat Mat Sto Robot Analysis Total . | . . . . Derelict Logs Recovered . | . . . . Drone Launches . | . . . . Drone Recoveries . | . . . . Exploration | -11 -10 -9 -9 ------------- Run | Jun Mat Mat Sto Turns Passed 679 | 26 312 247 94 Spaces Moved 750 | 39 351 255 105 Core 262 | 39 29 89 105 Treads . | . . . . Legs . | . . . . Wheels . | . . . . Hover 488 | . 322 166 . Flight . | . . . . Fastest Speed 50 | 50 50 50 50 Average Speed 55 | 50 55 57 50 Slowest Speed 200 | 50 56 200 50 Overloaded Moves . | . . . . Propulsion Burnouts . | . . . . Robots Hopped . | . . . . Cave-ins Triggered . | . . . . Exploration Rate (%) 33 | 3 70 25 35 Regions Visited 3 Branch Regions 1 Pre-discovered Areas 1 | . . . 1 Known Exits Taken . | . . . . Unknown Exits Taken 3 | 1 1 1 . Scrap Searched . | . . . . Spaces Dug . | . . . . Terrain Destroyed 7 | . 7 . . Melee . | . . . . Projectile . | . . . . AOE 7 | . 7 . . Terrain Rammed . | . . . . Walls Destroyed . | . . . . Machines Disabled . | . . . . Actions | -11 -10 -9 -9 --------- Run | Jun Mat Mat Sto Total 926 | 45 432 324 125 Wait 69 | . 27 34 8 Move 747 | 38 350 254 105 Hop . | . . . . Pick Up 23 | 4 15 4 . Fast Attach 2 | . 1 1 . Attach 13 | 2 8 3 . Detach 1 | . . 1 . Swap 3 | . 2 1 . Drop 11 | 1 3 7 . Fire 26 | . 26 . . Melee 31 | . . 19 12 Ram . | . . . . Kick . | . . . . Crush . | . . . . Escape Stasis . | . . . . Rewire . | . . . . Trap . | . . . . Miscellaneous . | . . . . Route ------- -11/Junkyard -10/Materials (discovered 3 exits: *Mat x2 / [*Min]) -9/Materials -9/Storage History --------- Turn | Location | Event 8 | -11/Junkyard | Discovered new exit (range 15) 27 | -11/Junkyard | Entered Materials 236 | -10/Materials | Discovered new exit (range 16) 267 | -10/Materials | Discovered new exit (range 8) 304 | -10/Materials | Build established: Mutant 312 | -10/Materials | Discovered new exit (range 15) 339 | -10/Materials | Entered another Materials area 339 | -9/Materials | Evolved 2 slots: Propulsion x1, Utility x1 542 | -9/Materials | Lost 4 parts (1p3n) 579 | -9/Materials | Discovered new exit (range 16) 586 | -9/Materials | Entered Storage 616 | -9/Storage | Learned location of Armory (-4) 642 | -9/Storage | Core integrity fell below 50% 677 | -9/Storage | Core integrity fell below 20% 680 | -9/Storage | Destroyed by G-34 Mercenary with Small Laser Last Messages --------------- 00626_ K-01 Serf knocked back. 00627_ K-01 Serf system terminally corrupted. 00627_ Lgt. Ion Engine fried. 00627_ Wheel fried. 00642_ Y-45 Defender suffers critical hit (Smash). 00642_ Y-45 Defender destroyed. 00646_ Sneak attack on R-06 Scavenger. 00646_ Destroyed Lgt. Ion Engine. 00646_ Destroyed Tractor Beam. 00646_ R-06 Scavenger system corrupted by crushing effect. 00651_ R-06 Scavenger knocked back. 00660_ W-16 Scout sends out distress signal. 00672_ Sneak attack on K-01 Serf. 00672_ Destroyed Wheel. 00672_ Destroyed Sml. Matter Pod. 00672_ K-01 Serf system corrupted by crushing effect. 00672_ Wheel fried. 00672_ K-01 Serf destroyed. 00677_ G-34 Mercenary knocked back. 00678_ Hvy. Mace destroyed. Map ----- +----------------------------------------------------+ | ?????????????????????????????????????????????????? | | ?????????????????????????????????????????????????? | | ???????????????#####?????????????????????????????? | | ??????????????? ??????????????????????????????? | | ??????????????? ??????????????????????????????? | | ??????????????? ??????????????????????????????? | | ??????????????? ??????????????????????????????? | | ???????????????# #??????????????????????????????? | | ???????????????# #??????????????????????????????? | | ???????????????# #??????????????????????????????? | | ???????????????# ##??# ?????????????????????????? | | ???????????????# ???/ ?????????????????????????? | | ???????????????# #???# ?????????????????????????? | | #####?######???# #???#g?????????????????????????? | | #?# ##### #???#g?????????????????????????? | | " #?# #???# ?????????????????????????? | | " #?# #####g#####????????????????????? | | #?# [ ###### ## #????????????????????? | | == ####+####???# ## #????????????????????? | | == # [%! #???# ## %== #????????????????????? | | # #???# ## === #????????????????????? | | # #???# ## === #????????????????????? | | ?# #???# ## #????????????????????? | | +##?# #???# ## #????????????????????? | | ! ###% #???# ## #????????????????????? | | !* / #???# ## @ #????????????????????? | | ! ### #???# ####+##/####???????????????????? | | #?# #???# g ????????????? | | #?# #???# ????????????? | | #?# #???# ????????????? | | #?#########???######## ?????????????? | | #????????????????????# ^ """ ?????????????? | | #????????????????????# """ ??????????????? | | #????????????????????# """ !?????????????? | | ????????????????????#Y ???? ??????????????? | | ???????????????????? ??????????????????? | | ???????????????????? ??????????????????? | | ??????????????????? ??????????????????? | | #???????????????????#####T###?????????????????? | | ####?????????????????????????????????????????????? | | ?????????????????????????????????????????????????? | | ?????????????????????????????????????????????????? | | ?????????????????????????????????????????????????? | | ?????????????????????????????????????????????????? | | ?????????????????????????????????????????????????? | | ?????????????????????????????????????????????????? | | ?????????????????????????????????????????????????? | | ?????????????????????????????????????????????????? | | ?????????????????????????????????????????????????? | | ?????????????????????????????????????????????????? | +----------------------------------------------------+ Best States ------------- Heat Dissipation 42 Energy Generation 10 Energy Capacity 125 Matter Stores 300 Matter Capacity 300 Sight Range 16 Terrain Scan Density 10 Propulsion Shielding 33 Evasion (%) 54 Item Schematics ----------------- Hcp. Storage Unit | -9/Materials | Hacked Robot Schematics ------------------ None Fabricated ------------ Nothing Alien Tech Used ----------------- None Achievements -------------- None Challenges ------------ None Game ------ Seed InsulationGhostClaymores Manual? 0 Play Time 00:11:40 Cumulative 84.5 hours Start 2024.01.15 @ 16:50:47 End 2024.01.15 @ 17:07:37 Sessions 1 Manual Loads 0 Difficulty Rogue Special Mode None Game No. 98 Rogue 98 Adventurer 0 Explorer 0 Win Type - Total 0 Types 0/0/0/0/0/0/0/0/0 Lore% 36 Gallery% 45 Achievement% 37 Wizard Run 0 Options --------- ASCII 0 Keyboard 0 Movement Mouse Keybinds 0 Fullscreen 2 Font 24/Smallcaps Map View 76x50 Tactical HUD 1 Map Filters NONE Filters NONE Steam 1 RUN: 90d93f9c-c28d-4b42-909d-44e10ff264b8